Cogmind - Beta 13 @@@ ROGUE MODE // 2024.03.27 @ 17:57:34 Player: f_ Result: Destroyed by G-47 Trooper with Particle Gun Performance ------------- Evolutions (0) 0 Regions Visited (2) 400 Robots Destroyed (15) 75 Value Destroyed (292) 292 Prototype IDs (2) 40 Alien Tech Used (0) 0 Bonus (0) 0 TOTAL SCORE: 807 Bonus ------- None Cogmind --------- Core Integrity 0/250 Matter 256/300 Energy 140/140 System Corruption 1% Temperature Warm (135) Movement Rolling (215) Ox9 Location -10/Mines Parts ------- > --- POWER (1) -------- Light Deuterium Engine > --- PROPULSION (2) --- Wheel > --- UTILITY (2) ------ Huge Storage Unit > --- WEAPON (2) ------- Shock Rifle Assault Cannon > --- INVENTORY (25) --- Ion Engine Wheel Wheel Wheel Sensor Array Utility Shielding Weapon Shielding Hardlight Generator Hacking Suite Long-range Tractor Beam Small Laser Particle Gun Grenade Launcher Grenade Launcher Grenade Launcher Grenade Launcher Grenade Launcher Datajack Heavy Mace Peak State ------------ > --- POWER ------------ Light Deuterium Engine > --- PROPULSION ------- Wheel Compact Wheel > --- UTILITY ---------- Huge Storage Unit Sensor Array > --- WEAPON ----------- Shock Rifle Assault Cannon > --- INVENTORY -------- Ion Engine Wheel Wheel Wheel Wheel Sensor Array Utility Shielding Weapon Shielding Hacking Suite Small Laser Particle Gun Grenade Launcher Grenade Launcher Grenade Launcher Grenade Launcher Grenade Launcher Datajack [Rating: 15] Favorites ----------- Power Ion Engine Engine Ion Engine Propulsion Wheel Wheel Wheel Utility Huge Storage Unit Device Sensor Array Storage Huge Storage Unit Weapon EM Pulse Gun Energy Gun EM Pulse Gun Energy Cannon Beam Cannon Ballistic Cannon Assault Cannon Build | -11 -10 -10 ------- Run | Yrd Mat Min Slots Evolved . | . . . Power . | . . . Propulsion . | . . . Utility . | . . . Weapon . | . . . Parts Attached 22 | 6 12 4 Power 4 | 1 2 1 Engine 4 | 1 2 1 Core . | . . . Reactor . | . . . Propulsion 5 | 2 2 1 Treads . | . . . Leg . | . . . Wheel 5 | 2 2 1 Hover . | . . . Flight . | . . . Utility 3 | 1 2 . Device 1 | . 1 . Storage 2 | 1 1 . Processor . | . . . Hackware . | . . . Protection . | . . . Artifact . | . . . Weapon 10 | 2 6 2 Energy Gun 7 | 2 4 1 Energy Cannon 2 | . 2 . Ballistic Gun . | . . . Ballistic Cannon 1 | . . 1 Launcher . | . . . Special Weapon . | . . . Impact Weapon . | . . . Slashing Weapon . | . . . Piercing Weapon . | . . . Special Melee Weapon . | . . . Unidentified Prototypes . | . . . Parts Lost 7 | . 4 3 Power 1 | . 1 . Propulsion 2 | . . 2 Utility 1 | . . 1 Weapon 3 | . 3 . Highest Loss Streak 2 | . 2 2 To Critical Strikes . | . . . Average Slot Usage (%) 84 | . 77 100 Engine 9 | . 7 14 Wheel 27 | . 27 28 Device 5 | . 1 14 Storage 14 | . 14 14 Energy Gun 21 | . 19 24 Energy Cannon 3 | . 5 . Ballistic Cannon 1 | . . 3 Naked Turns . | . . . Heaviest Build 94 | 14 90 94 Greatest Support 26 | 26 26 26 Greatest Overweight (x) 9 | . 5 9 Average Overweight (x) 2 | . 2 3 Largest Inventory Capacity 25 | 8 25 25 Average Capacity 22 | 7 21 25 Most Carried 20 | 2 14 20 Average Carried 11 | . 9 15 Final Capacity 25 | 8 25 25 Final Carried 19 | 1 12 19 Class Distribution -------------------- 100% | Mutant Dominant Class ---------------- Mutant | -10/Materials Mutant | -10/Mines Resources | -11 -10 -10 ----------- Run | Yrd Mat Min Matter Collected 392 | 92 237 63 Remotely . | . . . Salvage Created 379 | . 334 45 Parts 27 | . 27 . Haulers Intercepted 1 | . 1 . Recyclers Shooed . | . . . Parts Field Recycled . | . . . Retrieved Matter . | . . . Parts Self-Destructed . | . . . Prevented . | . . . Kills | -11 -10 -10 ------- Run | Yrd Mat Min Combat Hostiles Destroyed 10 | . 9 1 Guns 4 | . 3 1 Cannons 4 | . 4 . AOE 2 | . 2 . Classes Destroyed 5 | . 5 . Hauler 1 | . 1 . Operator 2 | . 2 . Watcher 2 | . 2 . Swarmer 6 | . 6 . Grunt 4 | . 3 1 Best Kill Streak 5 | . 5 1 Combat Bots Only 3 | . 3 1 Max Kills in Single Turn 2 | . 2 1 Gunslinging . | . . . Exploded 2 | . 2 . Melee . | . . . Uniques/NPCs Destroyed . | . . . Combat | -11 -10 -10 -------- Run | Yrd Mat Min Hostile Shots Fired 61 | . 51 10 Missed 22 | . 18 4 Damage Taken 646 | . 490 156 Core 253 | . 202 51 Absorbed by Shields . | . . . Core Remaining (%) 100 | 100 . . Volleys Fired 55 | . 50 5 Largest 2 | . 2 2 Hottest 105 | . 100 105 Shots Fired 79 | . 69 10 Gun 62 | . 56 6 Cannon 17 | . 13 4 Launcher . | . . . Special . | . . . Kinetic 4 | . . 4 Thermal 40 | . 38 2 Explosive . | . . . Electromagnetic 35 | . 31 4 Robot Hit Streak 9 | . 9 4 Robot Miss Streak 5 | . 5 1 Penetration Max . | . . . Secondary Targets . | . . . Shots Hit Robots 49 | . 41 8 Core Hits 18 | . 16 2 Critical Kills . | . . . Critical Parts Destroyed . | . . . Critical Strikes . | . . . Melee Attacks . | . . . Impact . | . . . Slashing . | . . . Piercing . | . . . Sneak Attacks . | . . . Combat Hostiles . | . . . Follow-up Attacks . | . . . Damage Inflicted 935 | . 747 188 Guns 514 | . 416 98 Cannons 187 | . 138 49 Explosions 234 | . 193 41 Melee . | . . . Ramming . | . . . Kinetic 49 | . . 49 Thermal 524 | . 455 69 Explosive 56 | . 56 . Electromagnetic 306 | . 236 70 Impact . | . . . Slashing . | . . . Piercing . | . . . Highest Corruption 1 | . 1 1 Average Corruption 1 | . 1 1 Corruption Purged . | . . . Corruption Blocked . | . . . Effects 9 | . 4 5 Message Errors 3 | . 3 . Matter Fused 4 | . . 4 Heat Flow Errors 1 | . 1 . Data Loss (minor) 1 | . . 1 Overload Shots . | . . . Overflow Damage 43 | . 33 10 Projectiles 8 | . 8 . Explosions 35 | . 25 10 Melee . | . . . Knockbacks 1 | . . 1 Impact . | . . . Kinetic 1 | . . 1 Secondary . | . . . Self-Inflicted Damage 146 | . 93 53 Shots 3 | . 2 1 Rammed . | . . . Targets Rammed . | . . . Kicked . | . . . Crushed . | . . . Highest Temperature 273 | . 273 126 Average Temperature 64 | . 68 43 Received Heat Transfer 159 | . 90 69 Effects 2 | . 2 . Interference 2 | . 2 . Siege Activations . | . . . Robots Corrupted . | . . . Combat Hostiles . | . . . Parts Fried . | . . . Impact Corruptions . | . . . Robots Melted . | . . . Combat Hostiles . | . . . Parts Melted 1 | . . 1 Heat Transferred 1020 | . 908 112 Parts Sabotaged . | . . . Parts Stolen . | . . . Parts Stripped . | . . . Power Chain Reactions 3 | . 2 1 Alert | -11 -10 -10 ------- Run | Yrd Mat Min Peak Influence 284 | . 284 118 Initial 57 | . . 57 Average 74 | . 84 64 Maximum Alert Level 1 | . 1 . Low Security (%) 95 | 100 92 100 Level 1 4 | . 7 . Level 2 . | . . . Level 3 . | . . . Level 4 . | . . . Level 5 . | . . . High Security . | . . . Max Security . | . . . Squads Dispatched 4 | . 3 1 Investigation 4 | . 3 1 Extermination . | . . . Reinforcement . | . . . Assault . | . . . Garrison . | . . . Intercept . | . . . Searches Triggered . | . . . Construction Impeded . | . . . Haulers Reinforced . | . . . Active Scanning Responses . | . . . Cargo Convoy Interrupts . | . . . Stealth | -11 -10 -10 --------- Run | Yrd Mat Min Distress Signals 1 | . 1 . Communications Jammed . | . . . Distress Signals . | . . . Times Spotted 24 | . 17 7 Peak Tracking Total 7 | . 4 7 Tactical Retreats . | . . . Traps | -11 -10 -10 ------- Run | Yrd Mat Min Traps Triggered 2 | . 2 . Indirectly . | . . . Trap Hack Attempts . | . . . Triggered . | . . . Disarmed . | . . . Reprogrammed . | . . . Reused . | . . . Traps Extracted . | . . . Installed . | . . . Triggered 1 | . 1 . Machines | -11 -10 -10 ---------- Run | Yrd Mat Min Machines Disabled 3 | . 3 . Max in Single Turn 3 | . 3 . Machines Repaired . | . . . Machines Dismantled . | . . . Machines Sabotaged . | . . . Overloaded Fab Kills . | . . . Hacking | -11 -10 -10 --------- Run | Yrd Mat Min Machines Accessed 6 | . 5 1 Terminals 5 | . 5 . Fabricators . | . . . Repair Stations . | . . . Recycling Units . | . . . Scanalyzers . | . . . Garrison Access . | . . . Total Hacks 12 | . 11 1 Successful 4 | . 3 1 Failed 8 | . 8 . Catastrophic . | . . . Database Lockouts . | . . . Manual . | . . . Terminals 11 | . 11 . Fabricators . | . . . Repair Stations . | . . . Recycling Units . | . . . Scanalyzers . | . . . Garrison Access . | . . . Terminal Hacks 4 | . 3 1 Robot Analysis 1 | . 1 . Prototype ID Bank 1 | . 1 . Open Door 1 | . . 1 Locate Traps 1 | . 1 . Fabricator Hacks . | . . . Repair Station Hacks . | . . . Recycling Unit Hacks . | . . . Scanalyzer . | . . . Garrison Access Hacks . | . . . Unauthorized Hacks . | . . . Terminals . | . . . Fabricators . | . . . Repair Stations . | . . . Recycling Units . | . . . Scanalyzers . | . . . Garrison Access . | . . . Data Cores Recovered 2 | . 2 . Used 1 | . 1 . Hacking Detections 2 | . 2 . Full Trace Events 2 | . 2 . Feedback Events . | . . . Feedback Blocked . | . . . Robot Schematics Acquired . | . . . Robots Built . | . . . Authchips . | . . . Time . | . . . Total Robot Build Rating . | . . . Part Schematics Acquired . | . . . Parts Built . | . . . Authchips . | . . . Time . | . . . Total Part Build Rating . | . . . Parts Repaired . | . . . Time . | . . . Parts Recycled . | . . . Recycled Matter . | . . . Retrieved Matter . | . . . Retrieved Components . | . . . Parts Scanalyzed . | . . . Part Schematics Acquired . | . . . Parts Damaged . | . . . Bothacking | -11 -10 -10 ------------ Run | Yrd Mat Min Used RIF Installer . | . . . Robots Hacked . | . . . Non-combat . | . . . Combat . | . . . Robot Hacks Applied . | . . . Relay Couplers Released . | . . . Fabnet Peak Effective % . | . . . Robots Rewired . | . . . Allies Hacked . | . . . Hacks Repelled . | . . . Allies | -11 -10 -10 -------- Run | Yrd Mat Min Total Allies . | . . . Largest Group . | . . . Highest-Rated Group . | . . . Highest-Rated Ally . | . . . Total Orders . | . . . Ally Attacks . | . . . Total Damage . | . . . Kills . | . . . Allies Corrupted . | . . . Allies Melted . | . . . Intel | -11 -10 -10 ------- Run | Yrd Mat Min Robot Analysis Total 1 | . 1 . Derelict Logs Recovered . | . . . Drone Launches . | . . . Drone Recoveries . | . . . Exploration | -11 -10 -10 ------------- Run | Yrd Mat Min Turns Passed 1197 | 47 779 371 Spaces Moved 576 | 40 438 98 Core 4 | 4 . . Treads . | . . . Legs . | . . . Wheels 572 | 36 438 98 Hover . | . . . Flight . | . . . Fastest Speed 50 | 50 90 135 Average Speed 123 | 86 124 136 Slowest Speed 215 | 90 175 215 Overloaded Moves . | . . . Propulsion Burnouts . | . . . Robots Hopped . | . . . Cave-ins Triggered . | . . . Exploration Rate (%) 34 | 4 69 30 Regions Visited 2 Branch Regions 1 Pre-discovered Areas . | . . . Known Exits Taken . | . . . Unknown Exits Taken 2 | 1 1 . Scrap Searched 1 | . . 1 Spaces Dug . | . . . Terrain Destroyed 24 | . 15 9 Melee . | . . . Projectile 1 | . . 1 AOE 23 | . 15 8 Terrain Rammed . | . . . Walls Destroyed . | . . . Machines Disabled . | . . . Actions | -11 -10 -10 --------- Run | Yrd Mat Min Total 979 | 52 603 324 Wait 293 | . 84 209 Move 574 | 39 437 98 Hop . | . . . Pick Up 34 | 7 19 8 Fast Attach 3 | . 3 . Attach 15 | 6 8 1 Detach . | . . . Swap 4 | . 1 3 Drop 1 | . 1 . Fire 55 | . 50 5 Melee . | . . . Ram . | . . . Kick . | . . . Crush . | . . . Escape Stasis . | . . . Rewire . | . . . Trap . | . . . Miscellaneous . | . . . Route ------- -11/Scrapyard -10/Materials (discovered 3 exits: [*Mat] / *Min x2) -10/Mines History --------- Turn | Location | Event 18 | -11/Scrapyard | Discovered new exit (range 16) 48 | -11/Scrapyard | Entered Materials 209 | -10/Materials | Discovered new exit (range 11) 309 | -10/Materials | Build established: Mutant 406 | -10/Materials | Discovered new exit (range 13) 508 | -10/Materials | Discovered new exit (range 8) 734 | -10/Materials | Core integrity fell below 50% 800 | -10/Materials | Derelicts attacked the area 823 | -10/Materials | Core integrity fell below 20% 827 | -10/Materials | Entered Mines 1090 | -10/Mines | Met a Derelict shopkeep closing up shop 1138 | -10/Mines | Assembled infested the area 1143 | -10/Mines | Assisted by a Guerilla fighting off Assembled 1198 | -10/Mines | Destroyed by G-47 Trooper with Particle Gun Last Messages --------------- 01145_ as-32525 suffers critical hit (Destroy). 01147_ HV Slug penetrates Wall. 01148_ as-52416 destroyed. 01151_ 26-W8R(h) destroyed. 01153_ Com. Wheel destroyed. 01155_ Critical hit (Burn: +37). 01166_ T-07 Excavator is excavating. 01180_ Searching scrap... 01180_ Found Assault Rifle. 01180_ Found 18 Matter. 01181_ Acquired 18 matter. 01185_ System corrupted: Matter fused (-7). 01192_ G-47 Trooper misfires. 01196_ Chain reaction triggered in Lgt. Nuclear Core. 01196_ Sensor Array destroyed. 01196_ Destroyed Sensor Array. 01196_ Wheel destroyed. 01196_ Destroyed Wheel. 01196_ G-47 Trooper knocked back. Map ----- +----------------------------------------------------+ | | | | | | | | | | | | | | | | | | | ?????????????????????????????????????????????????? | | ?????????????????????????????????????????????????? | | ?????????????????????????????????????????????????? | | ???????????????????????###???????????????????????? | | ??????????????????????## #??????????????????????? | | ?????????????????????## ??????????????????????? | | ????????????????????## ??????????????????????? | | ???????????????????## ??????????????????????? | | ???????????????????# ??????????????????????? | | ??????????????#????# ??????????????????????? | | ????????????? #???# ??????????????????????? | | ????????????## ???# #??????????????????????? | | ???????????# #### #??????????????????????? | | ??????? ?#? ##?????????????????????? | | ??????# # #?????????????????????? | | ??????# #??# ###???????????????????? | | ??????# ??????# @ ;%#???????????????????? | | ??????# ??????##;g; # ?????????????????? | | ??????# """ ?????##;; ;## ?????????????????? | | ???????# """ #?????# ### #????????????????? | | ????????# """ ##????#[## #????????????????? | | ?????????# """ ###### ###### #????????????????? | | ??????????# g #????# #????????????????? | | ??????????# ############ #????????????????? | | ??????????# ##???##""""## #????????????????? | | ??????????## #????#" "# #????????????????? | | ???????????## ##????#" "# #????####????????? | | ????????????# ###?????## ## #???## ##???????? | | ????????????# #??????#### ### #??## ##??????? | | ????????????# #?????## X # #?## #??????? | | ????????????# #?##### # ### #??????? | | ????????????# ### #### ## #??????? | | ????????????# ## #??# ##??????? | | ????????????##### ### #### = ##???????? | | ????????????????# #?# ## #### ##????????? | | ???????????????? ### #### #?????????? | | ???????????????? ### ####! #?????????? | | ??????????????? ## ##??## ##?????????? | | ??????????????# ## ##????#######??????????? | | ??????????????# % #####??????????????????????? | | ??????????????# ] ??????????????????????????? | +----------------------------------------------------+ Best States ------------- Heat Dissipation 25 Energy Generation 14 Energy Capacity 250 Matter Stores 269 Matter Capacity 300 Sight Range 16 Robot Scan Range 14 Terrain Scan Density 10 Evasion (%) 42 Item Schematics ----------------- None Robot Schematics ------------------ None Fabricated ------------ Nothing Alien Tech Used ----------------- None Achievements -------------- None Challenges ------------ None Game ------ Seed MeleeBombProcessor Manual? 0 Play Time 00:15:22 Cumulative 90.4 hours Start 2024.03.27 @ 17:44:02 End 2024.03.27 @ 17:57:34 Sessions 1 Manual Loads 0 Difficulty Rogue Special Mode None Game No. 87 Rogue 85 Adventurer 0 Explorer 2 Win Type - Total 0 Types 0/0/0/0/0/0/0/0/0 Lore% 25 Gallery% 38 Achievement% 25 Wizard Run 0 Options --------- Layout 1 ASCII 0 Keyboard 0 Movement Mouse Keybinds 0 Fullscreen 2 Font 48/Terminus Map View 50x35 Zoom Use 0% Tactical HUD 1 Map Filters NONE Filters NONE Steam 1 RUN: 1eca9b94-60a1-4892-89ec-b788e1371e38